lending/lending_fUSD_20250808
["ID","MTS","AMOUNT","RATE_DAILY","PERIOD"]
[378019080,1754669476091,-436.71,0.00019219,2]
[378019081,1754669476103,-1642.57,0.00019219,2]
[378019082,1754669476115,-414.27,0.00019219,2]
[378019083,1754669476124,-582.35,0.00019219,2]
[378019084,1754669476134,-400.0,0.00019219,2]
[378019085,1754669476143,-502.3,0.00019219,2]
[378019086,1754669476153,-400.0,0.00019219,2]
[378019087,1754669476163,-554.21,0.00019219,2]
[378019088,1754669476172,-536.27,0.00019219,2]
[378019089,1754669476182,-400.0,0.00019219,2]
[378019090,1754669476192,-400.0,0.00019219,2]
[378019091,1754669476201,-438.89,0.00019219,2]
[378019092,1754669476211,-760.61,0.00019219,2]
[378019093,1754669476220,-1278.86,0.00019219,2]
[378019094,1754669476230,-772.31,0.00019219,2]
[378019095,1754669476239,-400.0,0.00019219,2]
[378019096,1754669476248,-400.0,0.00019219,2]
[378019097,1754669476257,-3084.06,0.00019219,2]
[378019098,1754669476266,-400.0,0.00019219,2]
[378019099,1754669476275,-534.26,0.00019219,2]
[378019100,1754669476284,-537.01,0.00019219,2]
[378019101,1754669476294,-246.67,0.00019219,2]
[378019102,1754669476304,-400.0,0.00019219,2]
[378019103,1754669476313,-3832.0,0.00019219,2]
[378019104,1754669476322,-400.0,0.00019219,2]
[378019105,1754669476331,-693.11,0.00019219,2]
[378019106,1754669476341,-400.0,0.00019219,2]
[378019107,1754669476351,-11768.25,0.00019219,2]
[378019108,1754669476360,-400.0,0.00019219,2]
[378019109,1754669476369,-412.67,0.00019219,2]
[378019110,1754669476378,-400.0,0.00019219,2]
[378019111,1754669476388,-400.0,0.00019219,2]
[378019112,1754669476397,-400.0,0.00019219,2]
[378019113,1754669476407,-400.0,0.00019219,2]
[378019114,1754669476416,-400.0,0.00019219,2]
[378019115,1754669476425,-400.0,0.00019219,2]
[378019116,1754669476435,-548.19,0.00019219,2]
[378019117,1754669476445,-400.0,0.00019219,2]
[378019118,1754669476455,-842.93,0.00019219,2]
[378019119,1754669476464,-400.0,0.00019219,2]
[378019120,1754669476473,-163.86886364,0.00019219,2]
[378019121,1754669476483,-593.89,0.00019219,2]
[378019122,1754669476492,-340.84523557,0.00019219,2]
[378019123,1754669476502,-2566.79,0.00019219,2]
[378019124,1754669476511,-1773.58,0.00019219,2]
[378019125,1754669476520,-1000.0,0.00019221,2]
[378019126,1754669476530,-1000.0,0.00019221,2]
[378019127,1754669476539,-1000.0,0.00019221,2]
[378019128,1754669476549,-150.0,0.00019244,2]
[378019129,1754669476558,-168.0,0.00019252,2]
[378019130,1754669476568,-315.0,0.00019254,2]
[378019131,1754669476577,-5885.79142521,0.00019261,2]
[378019132,1754669476590,-168.0,0.00019264,2]
[378019133,1754669476600,-3421.47323467,0.00019282,2]
[378019134,1754669476610,-1650.0,0.00019291,2]
[378019135,1754669476619,-151.0,0.00019294,2]
[378019136,1754669476629,-151.0,0.00019294,2]
[378019137,1754669476638,-151.0,0.00019294,2]
[378019138,1754669476648,-151.0,0.00019294,2]
[378019139,1754669476657,-151.0,0.00019294,2]
[378019140,1754669476667,-151.0,0.00019294,2]
[378019141,1754669476676,-151.0,0.00019294,2]
[378019142,1754669476685,-226.685624,0.00019294,2]
[378019143,1754669476697,-226.685624,0.00019294,2]
[378019144,1754669476707,-181.743336,0.00019294,2]
[378019145,1754669476717,-181.743336,0.00019294,2]
[378019146,1754669476726,-151.0,0.00019294,2]
[378019147,1754669476736,-151.0,0.00019294,2]
[378019148,1754669476747,-151.0,0.00019294,2]
[378019149,1754669476757,-151.0,0.00019294,2]
[378019150,1754669476767,-151.0,0.00019294,2]
[378019151,1754669476777,-5564.34137179,0.000193,2]
[378019152,1754669476788,-119249.6876931,0.00019304,2]
[378019153,1754669476797,-151.0,0.00019304,2]
[378019154,1754669476808,-11301.6415905,0.00019306,2]
[378019155,1754669476818,-1067.1320656,0.00019306,2]
[378019156,1754669476828,-43707.0631589,0.00019306,2]
[378019157,1754669476838,-151.0,0.00019306,2]
[378019158,1754669476847,-158.90794,0.00019306,2]
[378019159,1754669476857,-19831.3427704,0.00019306,2]
[378019160,1754669476867,-158.33958,0.00019306,2]
[378019161,1754669476877,-214.539641,0.00019306,2]
[378019162,1754669476886,-214.539641,0.00019306,2]
[378019163,1754669476896,-228.5,0.00019315,2]
[378019164,1754669476905,-791.36,0.00019317,2]
[378019165,1754669476915,-400.0,0.00019317,2]
[378019166,1754669476925,-579.16,0.00019317,2]
[378019167,1754669476934,-400.0,0.00019317,2]
[378019168,1754669476944,-400.0,0.00019317,2]
[378019169,1754669476954,-472.99,0.00019317,2]
[378019170,1754669476963,-400.0,0.00019317,2]
[378019171,1754669476972,-400.0,0.00019317,2]
[378019172,1754669476982,-662.74,0.00019317,2]
[378019173,1754669476991,-1562.64,0.00019317,2]
[378019174,1754669477002,-1278.69,0.00019317,2]
[378019175,1754669477011,-507.46,0.00019317,2]
[378019176,1754669477020,-471.7,0.00019317,2]
[378019177,1754669477030,-628.16,0.00019317,2]
[378019178,1754669477040,-415.57,0.00019317,2]
[378019179,1754669477054,-400.0,0.00019317,2]
[378019180,1754669477063,-940.95,0.00019317,2]
[378019181,1754669477072,-637.49,0.00019317,2]
[378019182,1754669477082,-1520.75,0.00019317,2]
[378019183,1754669477092,-400.0,0.00019317,2]
[378019184,1754669477102,-1243.34,0.00019317,2]
[378019185,1754669477111,-553.09,0.00019317,2]
[378019186,1754669477120,-814.08,0.00019317,2]
[378019187,1754669477130,-808.04,0.00019317,2]
[378019188,1754669477139,-457.87,0.00019317,2]
[378019189,1754669477148,-1105.64,0.00019317,2]
[378019190,1754669477158,-151.0,0.00019317,2]
[378019191,1754669477167,-584.06,0.00019317,2]
[378019192,1754669477176,-400.0,0.00019317,2]
[378019193,1754669477185,-630.82,0.00019317,2]
[378019194,1754669477195,-400.0,0.00019317,2]
[378019195,1754669477204,-491.37,0.00019317,2]
[378019196,1754669477214,-423.21,0.00019317,2]
[378019197,1754669477223,-1250.67,0.00019317,2]
[378019198,1754669477232,-1281.81,0.00019317,2]
[378019199,1754669477242,-198.0,0.00019317,2]
[378019200,1754669477251,-400.0,0.00019317,2]
[378019201,1754669477260,-400.0,0.00019317,2]
[378019202,1754669477270,-151.0,0.00019317,2]
[378019203,1754669477279,-1423.91,0.00019317,2]
[378019204,1754669477289,-400.0,0.00019317,2]
[378019205,1754669477299,-1446.64,0.00019317,2]
[378019206,1754669477308,-441.0,0.00019317,2]
[378019207,1754669477318,-452.32,0.00019317,2]
[378019208,1754669477327,-579.16,0.00019318,2]
[378019209,1754669477337,-151.0,0.00019319,2]
[378019210,1754669477346,-195.143737,0.00019319,2]
[378019211,1754669477356,-151.0,0.00019319,2]
[378019212,1754669477365,-151.0,0.00019319,2]
[378019213,1754669477375,-241.581924,0.00019319,2]
[378019214,1754669477384,-241.581924,0.00019319,2]
[378019215,1754669477598,-297.596359,0.00019319,2]
[378019216,1754669477625,-297.596359,0.00019319,2]
[378019217,1754669477635,-151.0,0.00019319,2]
[378019218,1754669477645,-151.0,0.00019319,2]
[378019219,1754669477655,-151.0,0.00019319,2]
[378019220,1754669477665,-172.259748,0.00019319,2]
[378019221,1754669477674,-172.259748,0.00019319,2]
[378019222,1754669477684,-151.0,0.00019319,2]
[378019223,1754669477695,-792.81,0.00019319,2]
[378019224,1754669477706,-221.0,0.00019319,2]
[378019225,1754669477716,-3793.3,0.00019319,2]
[378019226,1754669477726,-451.66,0.00019319,2]
[378019227,1754669477737,-400.0,0.00019319,2]
[378019228,1754669477746,-400.0,0.00019319,2]
[378019229,1754669477756,-2754.9,0.00019319,2]
[378019230,1754669477767,-1320.5,0.00019319,2]
[378019231,1754669477777,-3846.14,0.00019319,2]
[378019232,1754669477787,-151.0,0.00019319,2]
[378019233,1754669477797,-4806.2,0.00019319,2]
[378019234,1754669477806,-1000.0,0.00019319,2]
[378019235,1754669477816,-2134.23,0.00019319,2]
[378019236,1754669477826,-3166.04,0.00019319,2]
[378019237,1754669477835,-151.0,0.00019319,2]
[378019238,1754669477844,-2847.9,0.00019319,2]
[378019239,1754669477854,-151.0,0.00019319,2]
[378019240,1754669477865,-9097.8,0.00019319,2]
[378019241,1754669477875,-151.0,0.00019319,2]
[378019242,1754669477885,-1805.08,0.00019319,2]
[378019243,1754669477895,-151.0,0.00019319,2]
[378019244,1754669477904,-151.0,0.00019319,2]
[378019245,1754669477914,-2223.45,0.00019319,2]
[378019246,1754669477924,-151.697016,0.00019319,2]
[378019247,1754669477933,-6174.0,0.00019319,2]
[378019248,1754669477943,-2054.29,0.00019319,2]
[378019249,1754669477953,-1472.26,0.00019319,2]
[378019250,1754669477963,-1850.46,0.00019319,2]
[378019251,1754669477973,-494.97,0.00019319,2]
[378019252,1754669477983,-151.0,0.00019319,2]
[378019253,1754669477992,-3935.11,0.00019319,2]
[378019254,1754669478002,-400.0,0.00019319,2]
[378019255,1754669478011,-2515.89,0.00019319,2]
[378019256,1754669478020,-1608.52,0.00019319,2]
[378019257,1754669478030,-1303.48,0.00019319,2]
[378019258,1754669478040,-4223.69,0.00019319,2]
[378019259,1754669478050,-247.952829,0.00019319,2]
[378019260,1754669478059,-1741.72,0.00019319,2]
[378019261,1754669478069,-151.0,0.00019319,2]
[378019262,1754669478078,-247.952829,0.00019319,2]
[378019263,1754669478088,-151.0,0.00019319,2]
[378019264,1754669478097,-2410.98,0.00019319,2]
[378019265,1754669478107,-3140.44,0.00019319,2]
[378019266,1754669478116,-1002.257171,0.00019319,2]
[378019267,1754669478126,-2021.3,0.00019319,2]
[378019268,1754669478136,-1002.257171,0.00019319,2]
[378019269,1754669478147,-491.68,0.00019319,2]
[378019270,1754669478156,-151.0,0.00019331,2]
[378019271,1754669478165,-151.0,0.00019331,2]
[378019272,1754669478177,-151.0,0.00019331,2]
[378019273,1754669478187,-151.0,0.00019331,2]
[378019274,1754669478196,-151.0,0.00019331,2]
[378019275,1754669478207,-151.0,0.00019331,2]
[378019276,1754669478216,-151.0,0.00019331,2]
[378019277,1754669478226,-151.0,0.00019331,2]
[378019278,1754669478235,-151.0,0.00019331,2]
[378019279,1754669478245,-151.0,0.00019331,2]
[378019280,1754669478254,-151.0,0.00019331,2]
[378019281,1754669478264,-151.0,0.00019331,2]
[378019282,1754669478274,-151.0,0.00019331,2]
[378019283,1754669478283,-151.0,0.00019331,2]
[378019284,1754669478293,-151.0,0.00019331,2]
[378019285,1754669478302,-151.0,0.00019331,2]
[378019286,1754669478311,-151.0,0.00019331,2]
[378019287,1754669478321,-151.0,0.00019331,2]
[378019288,1754669478331,-151.0,0.00019331,2]
[378019289,1754669478340,-163.67793049,0.00019331,2]
[378019290,1754669478350,-168.0,0.00019334,2]
[378019291,1754669478359,-279.85,0.00019335,2]
[378019292,1754669478368,-19999.99,0.00019339,2]
[378019293,1754669478378,-2000.0,0.0001934,2]
[378019294,1754669478388,-402.784,0.0001934,2]
[378019295,1754669478397,-564.291,0.0001934,2]
[378019296,1754669478406,-2000.0,0.0001934,2]
[378019297,1754669478416,-2000.0,0.0001934,2]
[378019298,1754669478426,-2000.0,0.0001934,2]
[378019299,1754669478435,-2000.0,0.0001934,2]
[378019300,1754669478444,-1029.855,0.0001934,2]
[378019301,1754669478455,-168.0,0.00019343,2]
[378019302,1754669478465,-189.46591014,0.00019353,2]
[378019303,1754669478475,-358.04,0.00019353,2]
[378019304,1754669478484,-5885.79142521,0.00019382,2]
[378019305,1754669478494,-151.0,0.00019383,2]
[378019306,1754669478504,-233.85980619,0.00019386,2]
[378019307,1754669478513,-168.0,0.00019387,2]
[378019308,1754669478524,-168.0,0.00019422,2]
[378019309,1754669478533,-228.5,0.00019425,2]
[378019310,1754669478543,-158.98528624,0.00019447,2]
[378019311,1754669478553,-519.47,0.00019451,2]
[378019312,1754669478563,-168.0,0.00019463,2]
[378019313,1754669478573,-1500.0,0.00019468,2]
[378019314,1754669478583,-500.0,0.00019468,2]
[378019315,1754669478593,-1000.0,0.00019468,2]
[378019316,1754669478602,-579.16,0.00019472,2]
[378019317,1754669478613,-151.0,0.00019473,2]
[378019318,1754669478622,-151.0,0.00019473,2]
[378019319,1754669478632,-152.458545,0.00019473,2]
[378019320,1754669478641,-151.0,0.00019473,2]
[378019321,1754669478651,-247.275893,0.00019473,2]
[378019322,1754669478660,-151.0,0.00019473,2]
[378019323,1754669478670,-151.0,0.00019473,2]
[378019324,1754669478680,-151.0,0.00019474,2]
[378019325,1754669478690,-167.68352,0.00019474,2]
[378019326,1754669478704,-151.0,0.00019479,2]
[378019327,1754669478714,-151.0,0.00019479,2]
[378019328,1754669478723,-306.577723,0.00019479,2]
[378019329,1754669478733,-306.577723,0.00019479,2]
[378019330,1754669478744,-151.0,0.00019479,2]
[378019331,1754669478754,-10513.6724475,0.00019479,2]
[378019332,1754669478764,-992.729853,0.00019479,2]
[378019333,1754669478775,-42374.5202478,0.00019479,2]
[378019334,1754669478785,-115771.3759512,0.00019479,2]
[378019335,1754669478795,-15532.5125212,0.00019479,2]
[378019336,1754669478805,-400.0,0.00019491,2]
[378019337,1754669478816,-589.79,0.00019491,2]
[378019338,1754669478825,-437.48,0.00019491,2]
[378019339,1754669478834,-400.0,0.00019491,2]
[378019340,1754669478844,-778.37,0.00019491,2]
[378019341,1754669478854,-1040.75,0.00019491,2]
[378019342,1754669478864,-400.0,0.00019491,2]
[378019343,1754669478875,-400.0,0.00019491,2]
[378019344,1754669478884,-582.38,0.00019491,2]
[378019345,1754669478894,-832.82,0.00019491,2]
[378019346,1754669478904,-400.0,0.00019491,2]
[378019347,1754669478914,-730.78,0.00019491,2]
[378019348,1754669478923,-978.87,0.00019491,2]
[378019349,1754669478933,-859.46,0.00019491,2]
[378019350,1754669478943,-1294.52,0.00019491,2]
[378019351,1754669478955,-400.0,0.00019491,2]
[378019352,1754669478965,-400.0,0.00019491,2]
[378019353,1754669478975,-1018.54,0.00019491,2]
[378019354,1754669478984,-595.29,0.00019491,2]
[378019355,1754669478995,-670.33,0.00019491,2]
[378019356,1754669479004,-400.0,0.00019491,2]
[378019357,1754669479013,-400.0,0.00019491,2]
[378019358,1754669479023,-455.50055166,0.00019491,2]
[378019359,1754669479032,-410.61,0.00019491,2]
[378019360,1754669479042,-1685.44,0.00019491,2]
[378019361,1754669479053,-504.11,0.00019491,2]
[378019362,1754669479062,-400.07,0.00019491,2]
[378019363,1754669479073,-4814.45,0.00019491,2]
[378019364,1754669479082,-400.0,0.00019491,2]
[378019365,1754669479092,-475.53,0.00019491,2]
[378019366,1754669479101,-715.42,0.00019491,2]
[378019367,1754669479111,-400.0,0.00019491,2]
[378019368,1754669479120,-601.22,0.00019491,2]
[378019369,1754669479130,-155.776285,0.00019491,2]
[378019370,1754669479139,-400.0,0.00019491,2]
[378019371,1754669479148,-586.59,0.00019491,2]
[378019372,1754669479157,-1231.15,0.00019491,2]
[378019373,1754669479167,-552.5,0.00019491,2]
[378019374,1754669479177,-152.542267,0.00019491,2]
[378019375,1754669479186,-2455.66,0.00019491,2]
[378019376,1754669479196,-1053.85,0.00019491,2]
[378019377,1754669479207,-224.907018,0.00019491,2]
[378019378,1754669479217,-905.25,0.00019491,2]
[378019379,1754669479226,-2834.45,0.00019491,2]
[378019380,1754669479236,-400.0,0.00019491,2]
[378019381,1754669479245,-1433.1,0.00019491,2]
[378019382,1754669479255,-1066.3,0.00019491,2]
[378019383,1754669479264,-1410.13,0.00019491,2]
[378019384,1754669479274,-944.36,0.00019491,2]
[378019385,1754669479283,-518.56,0.00019491,2]
[378019386,1754669479293,-1050.54,0.00019491,2]
[378019387,1754669479302,-754.73,0.00019491,2]
[378019388,1754669479312,-591.08,0.00019491,2]
[378019389,1754669479321,-1107.48,0.00019491,2]
[378019390,1754669479331,-469.73,0.00019491,2]
[378019391,1754669479340,-400.0,0.00019491,2]
[378019392,1754669479350,-3687.73,0.00019491,2]
[378019393,1754669479359,-531.1,0.00019491,2]
[378019394,1754669479369,-490.29,0.00019491,2]
[378019395,1754669479378,-834.33,0.00019491,2]
[378019396,1754669479387,-667.47,0.00019491,2]
[378019397,1754669479397,-3938.15,0.00019491,2]
[378019398,1754669479408,-2574.42,0.00019491,2]
[378019399,1754669479417,-1036.67,0.00019491,2]
[378019400,1754669479427,-1800.54,0.00019491,2]
[378019401,1754669479436,-3054.85,0.00019491,2]
[378019402,1754669479445,-1006.77,0.00019491,2]
[378019403,1754669479455,-1025.22,0.00019491,2]
[378019404,1754669479465,-640.9,0.00019491,2]
[378019405,1754669479474,-1520.44,0.00019491,2]
[378019406,1754669479484,-1142.56,0.00019491,2]
[378019407,1754669479493,-621.81,0.00019491,2]
[378019408,1754669479504,-4083.5,0.00019491,2]
[378019409,1754669479513,-568.41,0.00019491,2]
[378019410,1754669479523,-524.35,0.00019491,2]
[378019411,1754669479533,-1661.41,0.00019491,2]
[378019412,1754669479542,-1298.89,0.00019491,2]
[378019413,1754669479553,-357.25,0.00019491,2]
[378019414,1754669479562,-2454.24,0.00019491,2]
[378019415,1754669479571,-541.43,0.00019491,2]
[378019416,1754669479581,-540.08,0.00019491,2]
[378019417,1754669479590,-831.09,0.00019491,2]
[378019418,1754669479599,-3674.86,0.00019491,2]
[378019419,1754669479609,-2558.52,0.00019491,2]
[378019420,1754669479618,-400.0,0.00019491,2]
[378019421,1754669479628,-770.46,0.00019491,2]
[378019422,1754669479637,-931.41,0.00019491,2]
[378019423,1754669479647,-1046.41,0.00019491,2]
[378019424,1754669479657,-2675.43,0.00019491,2]
[378019425,1754669479668,-825.25,0.00019491,2]
[378019426,1754669479686,-4347.41,0.00019491,2]
[378019427,1754669479697,-6608.06,0.00019491,2]
[378019428,1754669479707,-1150.05,0.00019491,2]
[378019429,1754669479717,-400.0,0.00019492,2]
[378019430,1754669479726,-400.0,0.00019492,2]
[378019431,1754669479736,-400.0,0.00019492,2]
[378019432,1754669479745,-400.0,0.00019492,2]
[378019433,1754669479754,-400.0,0.00019492,2]
[378019434,1754669479765,-458.84,0.00019492,2]
[378019435,1754669479775,-1117.67,0.00019492,2]
[378019436,1754669479785,-421.41,0.00019492,2]
[378019437,1754669479795,-515.38,0.00019492,2]
[378019438,1754669479805,-1006.42,0.00019492,2]
[378019439,1754669479815,-400.0,0.00019492,2]
[378019440,1754669479824,-1001.32,0.00019492,2]
[378019441,1754669479834,-416.27,0.00019492,2]
[378019442,1754669479843,-400.0,0.00019492,2]
[378019443,1754669479852,-431.24,0.00019492,2]
[378019444,1754669479862,-313.26498144,0.00019492,2]
[378019445,1754669479871,-968.12,0.00019492,2]
[378019446,1754669479881,-531.71,0.00019492,2]
[378019447,1754669479890,-400.0,0.00019492,2]
[378019448,1754669479899,-402.79,0.00019492,2]
[378019449,1754669479909,-400.0,0.00019492,2]
[378019450,1754669479918,-839.4,0.00019492,2]
[378019451,1754669479928,-400.0,0.00019492,2]
[378019452,1754669479937,-413.42,0.00019492,2]
[378019453,1754669479947,-595.6,0.00019492,2]
[378019454,1754669479957,-400.0,0.00019492,2]
[378019455,1754669479966,-1000.0,0.00019492,2]
[378019456,1754669479976,-728.4,0.00019492,2]
[378019457,1754669479986,-457.06,0.00019492,2]
[378019458,1754669479996,-400.0,0.00019492,2]
[378019459,1754669480006,-426.5,0.00019492,2]
[378019460,1754669480015,-2865.41,0.00019492,2]
[378019461,1754669480024,-400.0,0.00019492,2]
[378019462,1754669480034,-400.0,0.00019492,2]
[378019463,1754669480043,-433.99,0.00019492,2]
[378019464,1754669480052,-1025.98,0.00019492,2]
[378019465,1754669480061,-578.59,0.00019492,2]
[378019466,1754669480071,-400.0,0.00019492,2]
[378019467,1754669480080,-568.96,0.00019492,2]
[378019468,1754669480090,-400.0,0.00019492,2]
[378019469,1754669480099,-400.0,0.00019492,2]
[378019470,1754669480109,-1746.19,0.00019492,2]
[378019471,1754669480119,-400.0,0.00019492,2]
[378019472,1754669480128,-868.12,0.00019492,2]
[378019473,1754669480138,-151.0,0.00019492,2]
[378019474,1754669480148,-583.5,0.00019492,2]
[378019475,1754669480157,-400.0,0.00019492,2]
[378019476,1754669480167,-511.52,0.00019492,2]
[378019477,1754669480176,-976.11,0.00019492,2]
[378019478,1754669480186,-487.87,0.00019492,2]
[378019479,1754669480195,-782.74,0.00019492,2]
[378019480,1754669480205,-528.81,0.00019492,2]
[378019481,1754669480214,-400.0,0.00019492,2]
[378019482,1754669480223,-400.0,0.00019492,2]
[378019483,1754669480232,-400.0,0.00019492,2]
[378019484,1754669480242,-971.0,0.00019492,2]
[378019485,1754669480251,-151.0,0.00019492,2]
[378019486,1754669480260,-400.0,0.00019492,2]
[378019487,1754669480270,-497.24,0.00019492,2]
[378019488,1754669480279,-1328.31,0.00019492,2]
[378019489,1754669480288,-400.0,0.00019492,2]
[378019490,1754669480297,-492.66,0.00019492,2]
[378019491,1754669480306,-400.0,0.00019492,2]
[378019492,1754669480316,-400.0,0.00019492,2]
[378019493,1754669480325,-400.0,0.00019492,2]
[378019494,1754669480334,-163.329809,0.00019492,2]
[378019495,1754669480343,-400.0,0.00019492,2]
[378019496,1754669480353,-536.48,0.00019492,2]
[378019497,1754669480362,-400.0,0.00019492,2]
[378019498,1754669480372,-1060.74,0.00019492,2]
[378019499,1754669480380,-400.0,0.00019492,2]
[378019500,1754669480389,-400.0,0.00019492,2]
[378019501,1754669480399,-857.42,0.00019492,2]
[378019502,1754669480408,-400.0,0.00019492,2]
[378019503,1754669480417,-400.0,0.00019492,2]
[378019504,1754669480426,-1331.55,0.00019492,2]
[378019505,1754669480436,-625.23,0.00019492,2]
[378019506,1754669480445,-400.0,0.00019492,2]
[378019507,1754669480455,-453.72,0.00019492,2]
[378019508,1754669480464,-425.8,0.00019492,2]
[378019509,1754669480474,-400.0,0.00019492,2]
[378019510,1754669480482,-596.31,0.00019492,2]
[378019511,1754669480492,-538.89,0.00019492,2]
[378019512,1754669480501,-400.0,0.00019492,2]
[378019513,1754669480511,-402.64,0.00019492,2]
[378019514,1754669480520,-400.0,0.00019492,2]
[378019515,1754669480530,-215.053333,0.00019492,2]
[378019516,1754669480540,-1320.59,0.00019492,2]
[378019517,1754669480550,-151.0,0.00019492,2]
[378019518,1754669480559,-400.0,0.00019492,2]
[378019519,1754669480569,-908.21,0.00019492,2]
[378019520,1754669480579,-896.71,0.00019492,2]
[378019521,1754669480588,-152.225106,0.00019492,2]
[378019522,1754669480598,-400.0,0.00019492,2]
[378019523,1754669480607,-400.0,0.00019492,2]
[378019524,1754669480616,-518.50026617,0.00019492,2]
[378019525,1754669480626,-420.23,0.00019492,2]
[378019526,1754669480636,-3958.88,0.00019492,2]
[378019527,1754669480645,-486.29,0.00019492,2]
[378019528,1754669480655,-868.76,0.00019492,2]
[378019529,1754669480664,-400.0,0.00019492,2]
[378019530,1754669480673,-400.0,0.00019492,2]
[378019531,1754669480682,-400.0,0.00019492,2]
[378019532,1754669480692,-400.0,0.00019492,2]
[378019533,1754669480705,-496.3,0.00019492,2]
[378019534,1754669480714,-544.9,0.00019492,2]
[378019535,1754669480723,-525.45,0.00019492,2]
[378019536,1754669480733,-400.0,0.00019492,2]
[378019537,1754669480744,-788.21,0.00019492,2]
[378019538,1754669480754,-1540.06,0.00019492,2]
[378019539,1754669480764,-491.6,0.00019492,2]
[378019540,1754669480776,-400.0,0.00019492,2]
[378019541,1754669480785,-151.0,0.00019492,2]
[378019542,1754669480795,-1676.13,0.00019492,2]
[378019543,1754669480805,-400.0,0.00019492,2]
[378019544,1754669480814,-400.0,0.00019492,2]
[378019545,1754669480823,-406.38,0.00019492,2]
[378019546,1754669480833,-400.0,0.00019492,2]
[378019547,1754669480843,-400.0,0.00019492,2]
[378019548,1754669480852,-1543.92,0.00019492,2]
[378019549,1754669481054,-1771.46,0.00019492,2]
[378019550,1754669481063,-1276.24,0.00019492,2]
[378019551,1754669481073,-1834.76,0.00019492,2]
[378019552,1754669481084,-910.98,0.00019492,2]
[378019553,1754669481094,-526.59,0.00019492,2]
[378019554,1754669481103,-400.0,0.00019492,2]
[378019555,1754669481115,-400.0,0.00019492,2]
[378019556,1754669481127,-404.83,0.00019492,2]
[378019557,1754669481136,-1444.29,0.00019492,2]
[378019558,1754669481146,-615.62,0.00019492,2]
[378019559,1754669481155,-1214.78,0.00019492,2]
[378019560,1754669481165,-400.0,0.00019492,2]
[378019561,1754669481175,-400.0,0.00019492,2]
[378019562,1754669481184,-1013.06,0.00019492,2]
[378019563,1754669481195,-497.84,0.00019492,2]
[378019564,1754669481207,-410.74,0.00019492,2]
[378019565,1754669481217,-400.0,0.00019492,2]
[378019566,1754669481227,-671.65,0.00019492,2]
[378019567,1754669481237,-3405.28,0.00019492,2]
[378019568,1754669481246,-460.1,0.00019492,2]
[378019569,1754669481255,-400.0,0.00019492,2]
[378019570,1754669481265,-420.14,0.00019492,2]
[378019571,1754669481274,-833.41,0.00019492,2]
[378019572,1754669481284,-400.0,0.00019492,2]
[378019573,1754669481293,-1142.08,0.00019492,2]
[378019574,1754669481303,-400.0,0.00019492,2]
[378019575,1754669481312,-777.18,0.00019492,2]
[378019576,1754669481322,-1516.44,0.00019492,2]
[378019577,1754669481332,-454.23,0.00019492,2]
[378019578,1754669481342,-400.0,0.00019492,2]
[378019579,1754669481351,-1407.46,0.00019492,2]